Cogmind - Beta 11 X8 @@@ ROGUE MODE // 2021.11.21 @ 04:39:06 Player: leiavoia Result: Destroyed by as-39419 with Assembled Focal Cannon Performance ------------- Evolutions (3) 1500 Regions Visited (12) 2400 Robots Destroyed (45) 225 Value Destroyed (1308) 1308 Prototype IDs (41) 820 Alien Tech Used (0) 0 Bonus (2785) 2785 TOTAL SCORE: 9038 Bonus ------- Follower Combat Kills 185 Aligned with FarCom 300 Met Imprinter 300 Destroyed Z-Imprinter 1000 Triggered Deep Caves Wall 500 Exposed GOLEM Chamber 500 Cogmind --------- Core Integrity 0/700 Matter 255/300 Energy 192/325 System Corruption 0% Temperature Cool (6) Movement Rolling (130) Ox2 Location -7/Deep Caves Parts ------- > --- POWER (1) -------- Antimatter Reactor > --- PROPULSION (4) --- Assembled Alloy Leg Armored Huge Wheel > --- UTILITY (5) ------ High-capacity Storage Unit Advanced Visual Processing Unit Layered Medium Armor Plating GOLEM Unit > --- WEAPON (3) ------- (None) > --- INVENTORY (20) --- Improved Carbon-fiber Leg Experimental Heat Sink Large Storage Unit High-capacity Matter Pod (200) Long-range Tractor Beam GOLEM Unit Zionite Phaser-S Improved Light Cannon Heavy Missile Launcher Field Lobotomy Kit (5) CR-A16's Pointy Stick Peak State ------------ > --- POWER ------------ Zionite Light DM Reactor > --- PROPULSION ------- Improved Carbon-fiber Leg Improved Carbon-fiber Leg Improved Carbon-fiber Leg Improved Carbon-fiber Leg > --- UTILITY ---------- Experimental Heat Sink High-capacity Storage Unit Advanced Visual Processing Unit Zionite Heavy Carapace > --- WEAPON ----------- RU-N14's Throwing Claymores RU-N14's Throwing Claymores RU-N14's Throwing Claymores > --- INVENTORY -------- Ion Engine Medium Treads Medium Treads Improved Carbon-fiber Leg Armored Huge Wheel Experimental Heat Sink Large Storage Unit High-capacity Matter Pod Light Armor Plating Improved Medium Armor Plating Long-range Tractor Beam Zionite Phaser-S Improved Light Cannon Rocket Launcher Rocket Launcher Heavy Missile Launcher Field Lobotomy Kit RU-N14's Throwing Claymores CR-A16's Pointy Stick [Rating: 75] Favorites ----------- Power Improved Ion Engine Engine Improved Ion Engine Reactor Antimatter Reactor Propulsion Improved Carbon-fiber Leg Treads Light Treads Leg Improved Carbon-fiber Leg Wheel Wheel Hover Unit Improved Hover Unit Utility Advanced Visual Processing Unit Device Sensor Array Storage High-capacity Storage Unit Processor Advanced Visual Processing Unit Protection Improved Medium Armor Plating Weapon RU-N14's Throwing Claymores Energy Gun Beamcaster Energy Cannon Advanced Beam Cannon Ballistic Gun Assault Rifle Ballistic Cannon Improved Light Cannon Launcher Rocket Launcher Special Weapon RU-N14's Throwing Claymores Impact Weapon Maul Slashing Weapon Axe Piercing Weapon CR-A16's Pointy Stick Build | -11 -10 -10 -9 -9 -9 -8 -8 -7 -7 -7 -7 -7 ------- Run | Scr Mat Min Mat Min Exi Min Mat Fac Low Low Zio Dee Slots Evolved 6 | . . . 2 . . . 2 2 . . . . Power . | . . . . . . . . . . . . . Propulsion 2 | . . . 1 . . . . 1 . . . . Utility 3 | . . . 1 . . . 1 1 . . . . Weapon 1 | . . . . . . . 1 . . . . . Parts Attached 104 | 2 4 13 9 10 2 . 15 8 5 . 10 26 Power 13 | . . 2 2 1 . . 1 . 1 . . 6 Engine 11 | . . 2 2 1 . . 1 . 1 . . 4 Core . | . . . . . . . . . . . . . Reactor 2 | . . . . . . . . . . . . 2 Propulsion 24 | 2 2 5 2 3 . . 3 1 . . 1 5 Treads 2 | 1 . . . . . . . . . . . 1 Leg 9 | . . . 1 2 . . 3 1 . . 1 1 Wheel 8 | 1 . 3 1 1 . . . . . . . 2 Hover 5 | . 2 2 . . . . . . . . . 1 Flight . | . . . . . . . . . . . . . Utility 29 | . 1 . 3 1 . . 7 3 2 . 4 8 Device 16 | . 1 . 2 1 . . 4 1 2 . 2 3 Storage 2 | . . . 1 . . . . 1 . . . . Processor 1 | . . . . . . . 1 . . . . . Hackware . | . . . . . . . . . . . . . Protection 10 | . . . . . . . 2 1 . . 2 5 Artifact . | . . . . . . . . . . . . . Weapon 38 | . 1 6 2 5 2 . 4 4 2 . 5 7 Energy Gun 11 | . . 3 . 2 1 . 3 . . . . 2 Energy Cannon 1 | . . . . . 1 . . . . . . . Ballistic Gun 2 | . . 1 1 . . . . . . . . . Ballistic Cannon 4 | . . . . . . . 1 2 1 . . . Launcher 8 | . . 1 . 2 . . . . 1 . 2 2 Special Weapon 5 | . . . . . . . . . . . 2 3 Impact Weapon 4 | . 1 1 1 1 . . . . . . . . Slashing Weapon 2 | . . . . . . . . 2 . . . . Piercing Weapon 1 | . . . . . . . . . . . 1 . Special Melee Weapon . | . . . . . . . . . . . . . Unidentified Prototypes 15 | . . . . 2 1 . 1 1 . . 2 8 Parts Lost 30 | . . 8 . 4 . . . 2 . . . 16 Power 5 | . . 2 . . . . . . . . . 3 Propulsion 12 | . . 3 . 3 . . . . . . . 6 Utility 5 | . . . . 1 . . . 1 . . . 3 Weapon 8 | . . 3 . . . . . 1 . . . 4 Highest Loss Streak 15 | . . 5 . 4 . . . 2 . . . 15 Average Slot Usage (%) 97 | . 85 96 99 96 100 100 97 98 100 100 99 92 Engine 8 | . 14 13 11 11 11 11 9 7 7 7 7 6 Leg 22 | . . . 7 15 22 22 18 30 30 30 30 28 Wheel 4 | . 4 3 22 15 11 11 8 . . . . . Hover 2 | . 17 23 3 . . . . . . . . . Device 15 | . 1 14 21 20 22 22 13 14 15 15 15 9 Storage 8 | . 14 14 11 11 11 11 9 7 7 7 7 7 Processor 4 | . . . . . . . 4 7 7 7 7 7 Protection 4 | . . . . . . . 7 7 7 7 6 6 Energy Gun 6 | . 20 5 11 11 11 11 10 14 7 7 1 . Ballistic Gun 1 | . . 7 10 . . . . . . . . . Ballistic Cannon 1 | . . . . . . . 6 . . 7 4 . Launcher 1 | . . 2 . 6 . . . . 6 . 2 . Special Weapon 4 | . . . . . . . . . . . 5 20 Impact Weapon 3 | . 7 10 . 4 11 11 9 4 . . . . Slashing Weapon 1 | . . . . . . . . 2 7 7 . . Piercing Weapon 1 | . . . . . . . . . . . 6 1 Naked Turns . | . . . . . . . . . . . . . Heaviest Build 82 | 12 14 16 34 36 35 35 45 66 65 65 76 82 Greatest Support 72 | 20 14 14 26 26 10 10 54 72 72 72 72 72 Greatest Overweight (x) 4 | 1 1 1 1 3 3 3 4 . . . 1 2 Average Overweight (x) . | . . . . 2 3 3 3 . . . . . Largest Inventory Capacity 20 | 8 8 8 15 15 15 15 15 20 20 20 20 20 Average Capacity 16 | 8 8 8 10 15 15 15 15 19 20 20 20 20 Most Carried 20 | 7 8 8 15 15 15 15 15 16 20 20 20 20 Average Carried 16 | 5 6 7 9 14 14 15 14 15 19 20 19 19 Final Capacity 20 | 8 8 8 15 15 15 15 15 20 20 20 20 20 Final Carried 20 | 6 7 8 15 15 15 15 15 16 20 20 20 12 Class Distribution -------------------- 39% | Mutant 22% | Scavenger-Mutant 15% | Scavenger-Assassin 15% | Derelict-Mutant 3% | Tank Dominant Class ---------------- Mutant | -10/Materials Mutant | -10/Mines Scavenger-Mutant | -9/Materials Scavenger-Mutant | -9/Mines Scavenger-Mutant | -9/Exiles Scavenger-Assassin | -8/Mines Scavenger-Assassin | -8/Materials Scavenger-Assassin | -7/Factory Mutant | -7/Lower Caves Mutant | -7/Lower Caves Derelict-Mutant | -7/Zion Mutant | -7/Deep Caves Resources | -11 -10 -10 -9 -9 -9 -8 -8 -7 -7 -7 -7 -7 ----------- Run | Scr Mat Min Mat Min Exi Min Mat Fac Low Low Zio Dee Matter Collected 1755 | 220 113 253 153 173 . 29 198 149 197 30 56 184 Remotely . | . . . . . . . . . . . . . Salvage Created 1963 | 115 113 35 204 240 . . 321 234 258 25 . 418 Parts 76 | 5 4 . 11 14 . . 18 10 7 . . 7 Haulers Intercepted 3 | . . . 2 . . . 1 . . . . . Recyclers Shooed 1 | . . . . 1 . . . . . . . . Parts Field Recycled . | . . . . . . . . . . . . . Retrieved Matter . | . . . . . . . . . . . . . Parts Self-Destructed 2 | . . . . . . . . . 2 . . . Prevented . | . . . . . . . . . . . . . Kills | -11 -10 -10 -9 -9 -9 -8 -8 -7 -7 -7 -7 -7 ------- Run | Scr Mat Min Mat Min Exi Min Mat Fac Low Low Zio Dee Combat Hostiles Destroyed 71 | . . 5 3 7 . . 6 2 5 1 . 42 Melee 1 | . . 1 . . . . . . . . . . Guns 14 | . . 3 3 2 . . 3 2 1 . . . Cannons 7 | . . . . . . . 3 . . 1 . 3 AOE 49 | . . 1 . 5 . . . . 4 . . 39 Classes Destroyed 18 | 2 1 1 3 2 . . 3 1 2 . . 3 Worker 3 | . . . . 1 . . . 2 . . . . Builder 1 | . . . . . . . 1 . . . . . Tunneler 2 | 1 . 1 . . . . . . . . . . Hauler 3 | . . . 2 . . . 1 . . . . . Recycler 4 | 1 1 . . 1 . . . 1 . . . . Watcher 1 | . 1 . . . . . . . . . . . Swarmer 5 | . . . 1 4 . . . . . . . . Grunt 8 | . . . 2 2 . . . . 4 . . . Brawler 1 | . . . . . . . . . 1 . . . Duelist 2 | . . . . 1 . . . 1 . . . . Sentry 5 | . . . . . . . 5 . . . . . Hunter 1 | . . . . . . . 1 . . . . . Programmer 2 | . . . . . . . . 1 . 1 . . Z-Light 5 | . . . . . . . . . . . . 5 Samaritan 2 | . . . . . . . . . 2 . . . Assembler 1 | . . . . . . . . . . . . 1 Assembled 36 | . . 5 . . . . . . . . . 31 Golem 5 | . . . . . . . . . . . . 5 Best Kill Streak 32 | 2 2 2 2 5 . . 4 2 4 1 . 32 Combat Bots Only 31 | . . 2 2 4 . . 3 2 4 1 . 31 Max Kills in Single Turn 17 | 1 1 1 1 3 . . 1 1 2 1 . 17 Gunslinging . | . . . . . . . . . . . . . Exploded 17 | . . 1 . 3 . . . . 2 . . 17 Melee 1 | . . 1 . . . . . . . . . . Uniques/NPCs Destroyed 1 | . . . . . . . . . . . . 1 Z-Imprinter (-7/Deep Caves) Combat | -11 -10 -10 -9 -9 -9 -8 -8 -7 -7 -7 -7 -7 -------- Run | Scr Mat Min Mat Min Exi Min Mat Fac Low Low Zio Dee Damage Taken 4619 | . 52 596 128 318 . . 184 346 193 45 . 2757 Core 970 | . . 123 33 54 . . 42 25 33 . . 660 Absorbed by Shields . | . . . . . . . . . . . . . Core Remaining (%) 80 | 100 . 50 . . . 78 92 . . . . . Volleys Fired 121 | 5 . 23 21 17 . . 15 7 9 4 . 20 Largest 3 | 2 . 2 2 2 . . 2 3 2 2 . 3 Hottest 175 | 80 . 95 95 131 . . 114 175 100 100 . . Shots Fired 207 | 10 . 27 42 21 . . 30 15 18 8 . 36 Gun 132 | 10 . 22 42 16 . . 15 14 9 4 . . Cannon 24 | . . . . . . . 15 1 4 4 . . Launcher 15 | . . 5 . 5 . . . . 5 . . . Special 36 | . . . . . . . . . . . . 36 Kinetic 57 | . . 12 21 . . . 15 1 4 4 . . Thermal 80 | . . 1 21 16 . . 15 14 9 4 . . Explosive 51 | . . 5 . 5 . . . . 5 . . 36 Electromagnetic 19 | 10 . 9 . . . . . . . . . . Robot Hit Streak 16 | 2 . 3 8 6 . . 16 3 3 9 . 8 Robot Miss Streak 3 | 1 . 3 3 1 . . 2 3 3 . . 1 Penetration Max . | . . . . . . . . . . . . . Secondary Targets . | . . . . . . . . . . . . . Shots Hit Robots 145 | 6 2 15 28 15 . . 22 9 13 8 . 27 Core Hits 168 | 2 1 8 9 10 . . 8 8 11 2 . 109 Critical Kills . | . . . . . . . . . . . . . Critical Parts Destroyed . | . . . . . . . . . . . . . Critical Strikes 5 | . . . 1 1 . . 1 . . . . 2 Burn 3 | . . . 1 1 . . 1 . . . . . Sever 2 | . . . . . . . . . . . . 2 Melee Attacks 29 | . 2 2 3 3 . . 2 5 11 . 1 . Impact 14 | . 2 2 3 3 . . 2 2 . . . . Slashing 14 | . . . . . . . . 3 11 . . . Piercing 1 | . . . . . . . . . . . 1 . Sneak Attacks 9 | . 1 2 . . . . 1 2 3 . . . Combat Hostiles 1 | . . 1 . . . . . . . . . . Follow-up Attacks . | . . . . . . . . . . . . . Damage Inflicted 12648 | 90 78 428 483 630 . . 491 330 802 203 . 9113 Guns 1566 | 90 . 135 483 274 . . 231 133 120 100 . . Cannons 364 | . . . . . . . 200 22 39 103 . . Explosions 8787 | . . 112 . 356 . . . . 355 . . 7964 Melee 782 | . 78 181 . . . . 60 175 288 . . . Ramming . | . . . . . . . . . . . . . Kinetic 598 | . . 70 164 . . . 200 22 39 103 . . Thermal 1199 | . . 22 319 274 . . 231 133 120 100 . . Explosive 8787 | . . 112 . 356 . . . . 355 . . 7964 Electromagnetic 133 | 90 . 43 . . . . . . . . . . Impact 367 | . 78 181 . . . . 60 48 . . . . Slashing 1564 | . . . . . . . . 127 288 . . 1149 Piercing . | . . . . . . . . . . . . . Highest Corruption 2 | . . 2 . . . . . . . . . . Average Corruption 2 | . . 2 . . . . . . . . . . Corruption Purged . | . . . . . . . . . . . . . Effects 3 | . . 3 . . . . . . . . . . Message Errors 1 | . . 1 . . . . . . . . . . Heat Flow Errors 1 | . . 1 . . . . . . . . . . Data Loss (minor) 1 | . . 1 . . . . . . . . . . Overload Shots . | . . . . . . . . . . . . . Overflow Damage 742 | . 15 112 . 10 . . 40 23 60 . . 482 Projectiles 113 | . . . . . . . . . . . . 113 Explosions 379 | . . . . 10 . . . . . . . 369 Melee 250 | . 15 112 . . . . 40 23 60 . . . Knockbacks 4 | . . . . . . . 2 . 1 1 . . Impact 1 | . . . . . . . 1 . . . . . Kinetic 3 | . . . . . . . 1 . 1 1 . . Secondary . | . . . . . . . . . . . . . Self-Inflicted Damage 54 | . . 3 . 51 . . . . . . . . Shots 3 | . . 1 . 2 . . . . . . . . Rammed . | . . . . . . . . . . . . . Targets Rammed . | . . . . . . . . . . . . . Kicked . | . . . . . . . . . . . . . Crushed . | . . . . . . . . . . . . . Highest Temperature 406 | 72 1 198 234 140 . . 379 406 20 . . 24 Average Temperature 88 | 42 1 57 69 58 . . 132 137 10 . . 14 Received Heat Transfer 694 | . 27 20 42 . . . 36 60 126 . . 383 Effects 2 | . . . . . . . 1 1 . . . . Damage (minor) 2 | . . . . . . . 1 1 . . . . Siege Activations . | . . . . . . . . . . . . . Robots Corrupted . | . . . . . . . . . . . . . Combat Hostiles . | . . . . . . . . . . . . . Parts Fried 7 | 2 1 . . . . . 3 1 . . . . Impact Corruptions 7 | . 1 3 . . . . 2 1 . . . . Robots Melted . | . . . . . . . . . . . . . Combat Hostiles . | . . . . . . . . . . . . . Parts Melted . | . . . . . . . . . . . . . Heat Transferred 2294 | . . 37 629 555 . . 481 222 222 148 . . Parts Sabotaged . | . . . . . . . . . . . . . Parts Stolen . | . . . . . . . . . . . . . Parts Stripped . | . . . . . . . . . . . . . Power Chain Reactions . | . . . . . . . . . . . . . Missiles Intercepted . | . . . . . . . . . . . . . Alert | -11 -10 -10 -9 -9 -9 -8 -8 -7 -7 -7 -7 -7 ------- Run | Scr Mat Min Mat Min Exi Min Mat Fac Low Low Zio Dee Peak Influence 194 | 10 33 47 88 194 . 7 158 138 . . . . Initial 71 | . 6 12 . 4 . . 2 71 . . . . Average 55 | 6 12 5 54 119 . 5 68 101 . . . . Maximum Alert Level . | . . . . . . . . . . . . . Low Security (%) 100 | 100 100 100 100 100 . 100 100 100 . . . . Level 1 . | . . . . . . . . . . . . . Level 2 . | . . . . . . . . . . . . . Level 3 . | . . . . . . . . . . . . . Level 4 . | . . . . . . . . . . . . . Level 5 . | . . . . . . . . . . . . . High Security . | . . . . . . . . . . . . . Max Security . | . . . . . . . . . . . . . Squads Dispatched 1 | . . . . . . . . 1 . . . . Investigation . | . . . . . . . . . . . . . Extermination . | . . . . . . . . . . . . . Reinforcement 1 | . . . . . . . . 1 . . . . Assault . | . . . . . . . . . . . . . Garrison . | . . . . . . . . . . . . . Intercept . | . . . . . . . . . . . . . Construction Impeded . | . . . . . . . . . . . . . Haulers Reinforced . | . . . . . . . . . . . . . Active Scanning Responses . | . . . . . . . . . . . . . Cargo Convoy Interrupts . | . . . . . . . . . . . . . Stealth | -11 -10 -10 -9 -9 -9 -8 -8 -7 -7 -7 -7 -7 --------- Run | Scr Mat Min Mat Min Exi Min Mat Fac Low Low Zio Dee Distress Signals 2 | . . . 2 . . . . . . . . . Communications Jammed . | . . . . . . . . . . . . . Distress Signals . | . . . . . . . . . . . . . Times Spotted 121 | . 3 25 5 7 . . 8 4 5 1 . 63 Peak Tracking Total 44 | . 3 8 3 4 . . 3 2 4 1 . 44 Tactical Retreats 10 | . . 9 . . . . . . . . . 1 Traps | -11 -10 -10 -9 -9 -9 -8 -8 -7 -7 -7 -7 -7 ------- Run | Scr Mat Min Mat Min Exi Min Mat Fac Low Low Zio Dee Traps Triggered . | . . . . . . . . . . . . . Indirectly . | . . . . . . . . . . . . . Trap Hack Attempts . | . . . . . . . . . . . . . Triggered . | . . . . . . . . . . . . . Disarmed . | . . . . . . . . . . . . . Reprogrammed . | . . . . . . . . . . . . . Reused . | . . . . . . . . . . . . . Traps Extracted . | . . . . . . . . . . . . . Installed . | . . . . . . . . . . . . . Triggered 2 | . . . . . . . . . 1 1 . . Machines | -11 -10 -10 -9 -9 -9 -8 -8 -7 -7 -7 -7 -7 ---------- Run | Scr Mat Min Mat Min Exi Min Mat Fac Low Low Zio Dee Machines Disabled 6 | . . . . 3 . . . . . . . 3 Max in Single Turn 3 | . . . . 3 . . . . . . . 1 Machines Sabotaged . | . . . . . . . . . . . . . Garrisons Compromised . | . . . . . . . . . . . . . Overloaded Fab Kills . | . . . . . . . . . . . . . Hacking | -11 -10 -10 -9 -9 -9 -8 -8 -7 -7 -7 -7 -7 --------- Run | Scr Mat Min Mat Min Exi Min Mat Fac Low Low Zio Dee Machines Accessed 9 | . . . 3 . 2 1 3 . . . . . Terminals 4 | . . . 2 . . 1 1 . . . . . Fabricators . | . . . . . . . . . . . . . Repair Stations 1 | . . . 1 . . . . . . . . . Recycling Units 1 | . . . . . . . 1 . . . . . Scanalyzers 1 | . . . . . . . 1 . . . . . Garrison Access . | . . . . . . . . . . . . . Total Hacks 23 | . . . 9 . 7 1 6 . . . . . Successful 18 | . . . 7 . 7 1 3 . . . . . Failed 5 | . . . 2 . . . 3 . . . . . Catastrophic . | . . . . . . . . . . . . . Database Lockouts . | . . . . . . . . . . . . . Manual 9 | . . . 2 . 1 . . . . . 6 . Terminals 7 | . . . 4 . . 1 2 . . . . . Fabricators . | . . . . . . . . . . . . . Repair Stations 5 | . . . 5 . . . . . . . . . Recycling Units 3 | . . . . . . . 3 . . . . . Scanalyzers 1 | . . . . . . . 1 . . . . . Garrison Access . | . . . . . . . . . . . . . Terminal Hacks 12 | . . . 2 . 7 1 2 . . . . . Record 6 | . . . . . 6 . . . . . . . Prototype ID Bank 1 | . . . . . . . 1 . . . . . Locate Traps 2 | . . . 2 . . . . . . . . . Patrol Status 1 | . . . . . . 1 . . . . . . Hauler Manifests 1 | . . . . . . . 1 . . . . . EX-Prototype ID Bank 1 | . . . . . 1 . . . . . . . Fabricator Hacks . | . . . . . . . . . . . . . Repair Station Hacks 4 | . . . 4 . . . . . . . . . Scan Component 2 | . . . 2 . . . . . . . . . Repair 2 | . . . 2 . . . . . . . . . Recycling Unit Hacks 1 | . . . . . . . 1 . . . . . Retrieve Components 1 | . . . . . . . 1 . . . . . Scanalyzer . | . . . . . . . . . . . . . Garrison Access Hacks . | . . . . . . . . . . . . . Unauthorized Hacks 1 | . . . 1 . . . . . . . . . Terminals 1 | . . . 1 . . . . . . . . . Operators 1 | . . . 1 . . . . . . . . . Fabricators . | . . . . . . . . . . . . . Repair Stations . | . . . . . . . . . . . . . Recycling Units . | . . . . . . . . . . . . . Scanalyzers . | . . . . . . . . . . . . . Garrison Access . | . . . . . . . . . . . . . Data Cores Recovered . | . . . . . . . . . . . . . Used . | . . . . . . . . . . . . . Hacking Detections 5 | . . . 2 . . . 3 . . . . . Full Trace Events . | . . . . . . . . . . . . . Feedback Events . | . . . . . . . . . . . . . Feedback Blocked . | . . . . . . . . . . . . . Robot Schematics Acquired 3 | . . . . . . . . . . . 3 . Robots Built . | . . . . . . . . . . . . . Authchips . | . . . . . . . . . . . . . Time . | . . . . . . . . . . . . . Total Robot Build Rating . | . . . . . . . . . . . . . Part Schematics Acquired 15 | . . . . . . . . . . . 15 . Parts Built . | . . . . . . . . . . . . . Authchips . | . . . . . . . . . . . . . Time . | . . . . . . . . . . . . . Total Part Build Rating . | . . . . . . . . . . . . . Parts Repaired 2 | . . . 2 . . . . . . . . . Time 58 | . . . 58 . . . . . . . . . Parts Recycled . | . . . . . . . . . . . . . Recycled Matter . | . . . . . . . . . . . . . Retrieved Matter . | . . . . . . . . . . . . . Retrieved Components 3 | . . . . . . . 3 . . . . . Parts Scanalyzed . | . . . . . . . . . . . . . Part Schematics Acquired . | . . . . . . . . . . . . . Parts Damaged . | . . . . . . . . . . . . . Bothacking | -11 -10 -10 -9 -9 -9 -8 -8 -7 -7 -7 -7 -7 ------------ Run | Scr Mat Min Mat Min Exi Min Mat Fac Low Low Zio Dee Used RIF Installer . | . . . . . . . . . . . . . Robots Hacked . | . . . . . . . . . . . . . Non-combat . | . . . . . . . . . . . . . Combat . | . . . . . . . . . . . . . Robot Hacks Applied . | . . . . . . . . . . . . . Relay Couplers Released . | . . . . . . . . . . . . . Fabnet Peak Effective % . | . . . . . . . . . . . . . Robots Rewired 1 | . . . . . . . . 1 . . . . Allies Hacked . | . . . . . . . . . . . . . Hacks Repelled . | . . . . . . . . . . . . . Allies | -11 -10 -10 -9 -9 -9 -8 -8 -7 -7 -7 -7 -7 -------- Run | Scr Mat Min Mat Min Exi Min Mat Fac Low Low Zio Dee Total Allies 10 | . . 2 . . . . . 1 . . 7 . Largest Group 7 | . . 2 . . . . . 1 . . 7 7 Highest-Rated Group 297 | . . 45 . . . . . 30 . . 297 297 Highest-Rated Ally 95 | . . 31 . . . . . 30 . . 95 95 Total Orders . | . . . . . . . . . . . . . Ally Attacks 153 | . . 6 . . . . . . . . . 147 Total Damage 4648 | . . 42 . . . . . . . . . 4606 Kills 20 | . . 1 . . . . . . . . . 19 Allies Corrupted . | . . . . . . . . . . . . . Allies Melted . | . . . . . . . . . . . . . Intel | -11 -10 -10 -9 -9 -9 -8 -8 -7 -7 -7 -7 -7 ------- Run | Scr Mat Min Mat Min Exi Min Mat Fac Low Low Zio Dee Robot Analysis Total . | . . . . . . . . . . . . . Derelict Logs Recovered 9 | . . 1 . 2 . . . . 2 2 2 . Drone Launches . | . . . . . . . . . . . . . Drone Recoveries . | . . . . . . . . . . . . . Exploration | -11 -10 -10 -9 -9 -9 -8 -8 -7 -7 -7 -7 -7 ------------- Run | Scr Mat Min Mat Min Exi Min Mat Fac Low Low Zio Dee Turns Passed 6879 | 31 93 597 455 529 390 346 575 240 712 238 1513 1160 Spaces Moved 4882 | 11 100 602 239 387 309 269 339 114 536 188 1160 628 Core . | . . . . . . . . . . . . . Treads . | . . . . . . . . . . . . . Legs 2678 | 3 . . 56 . . . 9 114 536 188 1160 612 Wheels 1676 | 8 32 142 183 387 309 269 330 . . . . 16 Hover 528 | . 68 460 . . . . . . . . . . Flight . | . . . . . . . . . . . . . Fastest Speed 56 | 95 56 56 90 105 125 125 120 120 120 120 120 115 Average Speed 122 | 101 69 73 119 115 125 125 137 120 120 120 126 168 Slowest Speed 260 | 120 120 116 190 125 125 125 260 120 120 120 190 190 Overloaded Moves . | . . . . . . . . . . . . . Propulsion Burnouts . | . . . . . . . . . . . . . Robots Hopped . | . . . . . . . . . . . . . Cave-ins Triggered . | . . . . . . . . . . . . . Exploration Rate (%) 52 | 2 20 93 29 84 70 56 40 8 70 41 85 82 Regions Visited 12 Branch Regions 8 Pre-discovered Areas 5 | . . . . . 1 . . . 1 1 2 . Known Exits Taken 3 | . . . 1 . . . 1 . . . 1 . Unknown Exits Taken 9 | 1 1 1 . 1 1 1 . 1 1 1 . . Scrap Searched 12 | . . 1 . 3 . 1 . . 3 1 3 . Spaces Dug 17 | . . . 3 3 . . 1 2 8 . . . Terrain Destroyed 225 | . . 44 3 36 . . 1 2 51 . . 88 Melee 17 | . . . 3 3 . . 1 2 8 . . . Projectile 3 | . . . . . . . . . 1 . . 2 AOE 205 | . . 44 . 33 . . . . 42 . . 86 Terrain Rammed . | . . . . . . . . . . . . . Walls Destroyed . | . . . . . . . . . . . . . Machines Disabled . | . . . . . . . . . . . . . Actions | -11 -10 -10 -9 -9 -9 -8 -8 -7 -7 -7 -7 -7 --------- Run | Scr Mat Min Mat Min Exi Min Mat Fac Low Low Zio Dee Total 5551 | 21 121 730 362 443 312 279 422 192 567 192 1205 705 Wait 254 | . 3 75 73 15 . 11 23 39 . 1 6 8 Move 4870 | 10 99 601 238 386 308 268 338 113 535 187 1159 628 Hop . | . . . . . . . . . . . . . Pick Up 68 | 2 5 10 12 7 1 . 9 1 5 . 11 5 Fast Attach 39 | . 4 3 3 2 . . 6 2 . . 5 14 Attach 29 | 2 . 7 2 3 . . 2 3 1 . . 9 Detach 8 | . 1 2 . . . . 2 1 . . 1 1 Swap 36 | . . 3 4 5 2 . 7 3 4 . 5 3 Drop 80 | 2 7 4 6 5 1 . 18 1 2 . 17 17 Fire 121 | 5 . 23 21 17 . . 15 7 9 4 . 20 Melee 29 | . 2 2 3 3 . . 2 5 11 . 1 . Ram . | . . . . . . . . . . . . . Kick . | . . . . . . . . . . . . . Crush . | . . . . . . . . . . . . . Escape Stasis . | . . . . . . . . . . . . . Rewire 17 | . . . . . . . . 17 . . . . Trap . | . . . . . . . . . . . . . Miscellaneous . | . . . . . . . . . . . . . Route ------- -11/Scrapyard -10/Materials -10/Mines -9/Materials -9/Mines (discovered 2 exits: *Mat / *Exi) -9/Exiles -8/Mines -8/Materials -7/Factory -7/Lower Caves -7/Lower Caves -7/Zion (discovered 2 exits: *Dee / [*Pro]) -7/Deep Caves (discovered 1 exit: [*Pro]) History --------- Turn | Location | Event 17 | -11/Scrapyard | Discovered new exit (range 3) 32 | -11/Scrapyard | Entered Materials 121 | -10/Materials | Discovered new exit (range 7) 125 | -10/Materials | Entered Mines 126 | -10/Mines | Assembled infested the area 131 | -10/Mines | Assisted by a Guerilla fighting off Assembled 366 | -10/Mines | Build established: Mutant 372 | -10/Mines | Lost 5 parts (1p2n2w) 374 | -10/Mines | Learned location of 1 exit from Materials 707 | -10/Mines | Discovered new exit (range 16) 722 | -10/Mines | Entered Materials 722 | -9/Materials | Evolved 2 slots: Propulsion x1, Utility x1 723 | -9/Materials | Identified exit to Mines 890 | -9/Materials | Build established: Scavenger-Mutant 958 | -9/Materials | Repaired Sensor Array 992 | -9/Materials | Repaired Maul 1177 | -9/Materials | Entered Mines 1212 | -9/Mines | Found a hidden stash of uninstalled traps 1280 | -9/Mines | A weapon hastily lodged in a ceiling crevice suddenly fell to the ground 1432 | -9/Mines | Lost 4 parts (3n1u) 1556 | -9/Mines | Received a Rocket Launcher from a helpful Derelict 1575 | -9/Mines | Discovered new exit (range 16) 1605 | -9/Mines | Learned Materials emergency access door positions 1638 | -9/Mines | Learned location of 1 exit from Materials 1700 | -9/Mines | Deemed a non-threat by the Exiles lab entrance 1701 | -9/Mines | Discovered new exit (range 5) 1706 | -9/Mines | Entered Exiles 1740 | -9/Exiles | Met 8R-AWN 1758 | -9/Exiles | Met EX-HEX 1818 | -9/Exiles | Met EX-BIN 1835 | -9/Exiles | Aligned with FarCom system 1836 | -9/Exiles | Given EX-Vault access code 1873 | -9/Exiles | Opened EX-Vault 1884 | -9/Exiles | Found Field Lobotomy Kit 1908 | -9/Exiles | Warned to stay clear of 0b10 Research branches 1947 | -9/Exiles | Met EX-DEC 2041 | -9/Exiles | Learned location of Zion (-7) 2086 | -9/Exiles | Discovered new exit (range 10) 2096 | -9/Exiles | Left Exiles lab with Field Lobotomy Kit 2096 | -9/Exiles | Entered Mines 2392 | -8/Mines | Discovered new exit (range 10) 2398 | -8/Mines | Build established: Scavenger-Assassin 2442 | -8/Mines | Entered Materials 2442 | -8/Materials | Evolved 2 slots: Utility x1, Weapon x1 2443 | -8/Materials | Identified exit to Factory 3017 | -8/Materials | Entered Factory 3017 | -7/Factory | Evolved 2 slots: Propulsion x1, Utility x1 3137 | -7/Factory | P-60 Hacker assimilated allied Fighter 4a 3176 | -7/Factory | Discovered new exit (range 13) 3257 | -7/Factory | Entered Lower Caves 3484 | -7/Lower Caves | Spotted B-75 Beast 3516 | -7/Lower Caves | Learned Factory stockpile data 3522 | -7/Lower Caves | Build established: Mutant 3692 | -7/Lower Caves | Discovered new exit (range 18) 3969 | -7/Lower Caves | Entered another Lower Caves area 3970 | -7/Lower Caves | Encountered a Warlord checkpoint 4185 | -7/Lower Caves | Learned 8 Factory zone layouts 4198 | -7/Lower Caves | Discovered new exit (range 5) 4207 | -7/Lower Caves | Entered Zion 4224 | -7/Zion | Found CR-A16's Pointy Stick 4254 | -7/Zion | Discovered new exit (range 17) 4331 | -7/Zion | Gained Derelict followers 4421 | -7/Zion | Acquired unknown access codes intercepted by a Zionite 4437 | -7/Zion | Identified exit to Deep Caves 4439 | -7/Zion | Given A8's code to call for help 4442 | -7/Zion | Learned location of Recycling (-7) 4462 | -7/Zion | Found Prototype Special Weapon 4465 | -7/Zion | Found Prototype Special Weapon 4468 | -7/Zion | Found Prototype Special Weapon 4470 | -7/Zion | Found Prototype Special Weapon 4782 | -7/Zion | Learned location of Warlord (-4) 4802 | -7/Zion | Learned Factory emergency access door positions 4968 | -7/Zion | Rebuked by Imprinter 5027 | -7/Zion | Received a hallucinogenic algorithm 5067 | -7/Zion | Build established: Derelict-Mutant 5142 | -7/Zion | Opened final containment barrier to the Deep Caves 5154 | -7/Zion | Identified RU-N14's Throwing Claymores (x4) 5661 | -7/Zion | Saw the warning signs outside the Deep Caves entrance 5692 | -7/Zion | Enhanced Grunt warped into view, answering call for help 5694 | -7/Zion | Enhanced Grunt warped into view, answering call for help 5720 | -7/Zion | Entered Deep Caves 5720 | -7/Deep Caves | Accompanied by 7 allies 5969 | -7/Deep Caves | Z-Facility disabled 5973 | -7/Deep Caves | Attacked by Z-Imprinter 5984 | -7/Deep Caves | Destroyed Z-Imprinter 6101 | -7/Deep Caves | Found Prototype Protection 6101 | -7/Deep Caves | Identified Zio. Weapon Casing 6106 | -7/Deep Caves | Found Prototype Protection 6106 | -7/Deep Caves | Identified Zio. Heavy Carapace 6296 | -7/Deep Caves | Found Zio. Heavy Carapace 6447 | -7/Deep Caves | Discovered new exit (range 12) 6636 | -7/Deep Caves | Build established: Mutant 6728 | -7/Deep Caves | Spotted as-73708 6747 | -7/Deep Caves | Exposed GOLEM chamber 6768 | -7/Deep Caves | Triggered Deep Caves wall 6768 | -7/Deep Caves | Spotted AS-50936 6768 | -7/Deep Caves | Destroyed AS-50936 6774 | -7/Deep Caves | Spotted AS-31788 6796 | -7/Deep Caves | Destroyed 31 combat bots 6817 | -7/Deep Caves | Spotted as-39419 6820 | -7/Deep Caves | Found GOLEM Unit 6824 | -7/Deep Caves | Found GOLEM Unit 6849 | -7/Deep Caves | Core integrity fell below 50% 6869 | -7/Deep Caves | Core integrity fell below 20% 6880 | -7/Deep Caves | Destroyed by as-39419 with Assembled Focal Cannon Last Messages --------------- 06837_ Destroyed Lgt. Treads. 06838_ Imp. Carbon-fiber Leg destroyed. 06839_ as-75849 destroyed. 06841_ Imp. Deuterium Engine destroyed. 06846_ Imp. Ion Engine destroyed. 06846_ Med. Treads destroyed. 06848_ Imp. Carbon-fiber Leg destroyed. 06851_ Rocket Launcher destroyed. 06851_ Imp. Carbon-fiber Leg destroyed. 06862_ Enhanced Grunt destroyed. 06865_ Acquired Arm. Wheel. 06865_ Arm. Wheel destroyed. 06869_ The unstable cave ceiling collapses. 06870_ GOLEM Unit beginning Asb. Alloy Leg integration. 06870_ as-23015 released from Mobile Assembly Unit. 06873_ Ion Engine destroyed. 06873_ Exp. Heat Sink destroyed. 06873_ Acquired Antimatter Reactor. 06876_ Acquired Lyr. Medium Armor Plating. 06876_ RU-N14's Throwing Claymores destroyed. Map ----- +----------------------------------------------------+ | ???????? #???### ### | | ???????" ###???# | | ???????" ] #???## | | ???????" #??##???## ### # | | ???????"" #?? #????#####?## # | | ??????### ### ##??????????### # | | ??""""" # ???????????# # | | ??" * M ##???????????## # | | ??"! ###????###### # | | ??" * ????## ## # | | ??" * #?????# ## | | ??" ##????# #? | | ??" A #????# ### | | ??" !! #????## ##?# | | ??""""" G ! h * #??#?## ##?# | | ??????###=!* #? ### #?# | | ???????"G [ = # # ### | | ??????#"G G = #?# | | ??????#GGG # # | | ??????#"G ! # # ## # | | ??????#GG l ! h #?# # | | ??????### a ! = ### # | | ????????" = ; ## # | | ????????" ##### | | ????????" l | | ????????""" @ h | | ????????" ! | | ????????"" ####### | | ????????" h #?????## | | ????????"" ##??????# | | ????????" # # #??????? | | ????????" #### ## ## ##???????# ## | | ????????""" ###??# ## ####????????#######? | | ?????????? ????#### #??????????????????? | | ?????????######????????#???????????????????? | | | | | | | | | | | | | | | | | | | | | | | | | | | | | | | +----------------------------------------------------+ Best States ------------- Heat Dissipation 61 Energy Generation 27 Energy Capacity 325 Matter Stores 300 Matter Capacity 300 Sight Range 20 Robot Scan Range 14 Terrain Scan Range 16 Terrain Scan Density 10 Jamming Range 8 Armor Coverage 1200 Power Shielding 66 Weapon Cycling 15 Evasion (%) 55 Item Schematics ----------------- Lgt. Angular Momentum Engine | -7/Zion | Archive Adv. ECM Suite | -7/Zion | Archive Adv. Terrain Scan Processor | -7/Zion | Archive Power Sword | -7/Zion | Archive Imp. Deuterium Engine | -7/Zion | Archive Adv. Sensor Array | -7/Zion | Archive Mak. Hacking Suite | -7/Zion | Archive Imp. Focal Shield | -7/Zion | Archive Imp. Component Analysis Suite | -7/Zion | Archive Mak. Flight Unit | -7/Zion | Archive Hvy. Machine Gun | -7/Zion | Archive Imp. Carbon-fiber Leg | -7/Zion | Archive Adv. Signal Interpreter | -7/Zion | Archive Mak. Hover Unit | -7/Zion | Archive Mak. Spear | -7/Zion | Archive Robot Schematics ------------------ A-02 Transporter | -7/Zion | Archive T-07 Excavator | -7/Zion | Archive C-57 Dissector | -7/Zion | Archive Fabricated ------------ Nothing Alien Tech Used ----------------- None Achievements -------------- None Challenges ------------ None Game ------ Seed ShieldTitaniumMultirail Manual? 0 Play Time 01:30:32 Cumulative 495.1 hours Start 2021.11.21 @ 03:03:00 End 2021.11.21 @ 04:39:06 Sessions 1 Manual Loads 0 Difficulty Rogue Special Mode None Game No. 104 Rogue 73 Adventurer 31 Explorer 0 Win Type - Total 26 Types 21/0/2/3/0/0/0/0/0 Lore% 69 Gallery% 81 Achievement% 63 Wizard Run 0 Options --------- ASCII 0 Keyboard 0 Movement Arrows Keybinds 0 Fullscreen 1 Font 20/Terminus Map View 66x50 Tactical HUD 1 Map Filters NONE Filters NONE Steam 1 RUN: 151217ec-cb06-422b-a1ca-a5564506cdb9